bitfinex/quotes_ETHUSD_20250413
["timestamp","ask_amount","ask_price","bid_price","bid_amount"]
[1744551733805,0.12647498,1591.4,1591.3,11.1896562]
[1744551734005,6.616,1591.6,1591.5,6.28338]
[1744551734208,6.74247498,1591.6,1591.5,6.83338]
[1744551734399,0.12647498,1591.6,1591.5,8.145079]
[1744551734713,12.89834,1591.8,1591.6,0.55]
[1744551735093,6.616,1591.8,1591.6,0.55]
[1744551735296,6.616,1591.8,1591.6,6.83297]
[1744551735496,6.616,1591.8,1591.6,0.55]
[1744551736099,12.89826,1591.8,1591.6,0.55]
[1744551736309,6.616,1591.8,1591.3,0.3947262]
[1744551736510,6.28314,1591.6,1591.3,6.6788762]
[1744551737008,0.12709417,1591.5,1591.3,0.3947262]
[1744551737195,8.02743417,1591.5,1591.3,0.3947262]
[1744551737397,12.90177,1591.4,1591.3,0.3947262]
[1744551737899,13.02886417,1591.4,1591.3,0.3947262]
[1744551739586,18.02261417,1591.4,1591.3,0.3947262]
[1744551741211,21.02261417,1591.4,1591.3,6.2e-06]
[1744551741412,10.89856,1591.2,1591.1,1e-05]
[1744551741735,21.01810379,1591.2,1591.1,1e-05]
[1744551742408,7.90014,1590.8,1590.7,0.01]
[1744551742648,6.621,1590.8,1590.7,0.01]
[1744551742847,13.02593379,1590.8,1590.7,0.01]
[1744551743614,6.73979379,1590.8,1590.7,0.01]
[1744551745326,13.02593379,1590.8,1590.7,0.01]
[1744551745523,6.73979379,1590.8,1590.7,0.01]
[1744551745743,13.02593379,1590.8,1590.7,0.01]
[1744551746438,6.28693,1590.6,1590.1,0.02]
[1744551746643,7.91121,1590.2,1590.1,1e-05]
[1744551746856,71.80695,1590.2,1590.1,1e-05]
[1744551747035,71.80795,1590.2,1590.1,1e-05]
[1744551747403,72.27767564,1590.2,1590.1,1e-05]
[1744551747758,75.27767564,1590.2,1590.1,1e-05]
[1744551748061,5.00244,1590.2,1590.1,1e-05]
[1744551748227,11.29095,1590.2,1590.1,1e-05]
[1744551748639,5.00244,1590.2,1590.1,1e-05]
[1744551748839,13.01174,1590.4,1590.1,0.55001]
[1744551749160,5.01064,1590.6,1590.1,1.312852]
[1744551749323,6.28851,1590.2,1590.1,1e-05]
[1744551749674,16.39225,1590.2,1590.1,1e-05]
[1744551749991,6.28575,1590.9,1590.2,6.28833]
[1744551750124,6.28332,1591.6,1590.6,1.6557]
[1744551750318,6.11,1592.1,1591.1,1.6361]
[1744551750519,14.9464,1592.0,1591.5,0.55]
[1744551750837,6.28216,1591.9,1591.5,0.55]
[1744551751156,6.28101,1592.1,1591.5,6.28337]
[1744551751327,60.023,1592.2,1591.3,6.28399]
[1744551751534,6.28222,1591.8,1591.3,6.28394]
[1744551751729,7.042,1591.7,1591.2,9.83455]
[1744551751954,13.32479,1591.7,1591.2,9.83455]
[1744551752122,7.042,1591.7,1591.1,7.92105]
[1744551752323,6.28362,1591.5,1590.8,1.6361]
[1744551752545,6.28362,1591.5,1591.0,3.0]
[1744551752855,6.28396,1591.4,1590.9,6.28538]
[1744551753058,7.041,1591.3,1590.9,6.28538]
[1744551753352,6.28472,1591.2,1590.7,6.28652]
[1744551753562,6.28538,1591.0,1590.4,6.28771]
[1744551753756,6.28538,1591.0,1590.5,6.28727]
[1744551753757,7.041,1590.9,1590.5,6.28727]
[1744551753957,7.041,1590.9,1590.5,6.28707]
[1744551754136,7.041,1590.9,1590.4,6.9791443]
[1744551754328,7.041,1590.9,1590.3,0.628833]
[1744551754329,13.32679,1590.9,1590.3,6.916933]
[1744551754524,7.041,1590.9,1590.5,6.28725]
[1744551754858,7.041,1590.8,1590.6,6.28666]
[1744551755058,7.041,1590.8,1590.5,6.28724]
[1744551755262,9.11,1591.2,1590.4,6.28738]
[1744551755263,6.11,1591.2,1590.4,3.55]
[1744551755461,7.041,1590.9,1590.8,6.8358]
[1744551755661,7.041,1590.9,1590.8,0.55]
[1744551755862,7.041,1590.9,1590.8,6.83614]
[1744551756058,7.042,1591.0,1590.8,6.83592]
[1744551756262,13.32758,1591.0,1590.5,6.28718]
[1744551756432,13.32758,1591.0,1590.5,12.57425]
[1744551756631,13.32758,1591.0,1590.5,3.0]
[1744551756830,13.32758,1591.0,1589.7,7.9854422]
[1744551756831,8.16,1590.9,1589.7,1.6951322]
[1744551757064,7.83291,1590.2,1589.7,1.6951322]
[1744551757536,13.67699,1590.4,1589.8,6.28982]
[1744551757738,7.389,1590.4,1589.8,6.29009]
[1744551757943,7.389,1590.4,1590.2,6.28845]
[1744551758465,7.389,1590.4,1590.3,6.28812]
[1744551758638,7.389,1590.4,1590.2,6.28833]
[1744551758837,7.389,1590.4,1590.3,6.28812]
[1744551759041,7.389,1590.4,1590.2,6.28833]
[1744551759247,60.022,1590.5,1590.1,6.28861]
[1744551759468,60.022,1590.5,1590.2,6.2885]
[1744551759831,66.30958,1590.5,1590.0,6.28924]
[1744551760167,6.28775,1590.4,1590.0,6.28909]
[1744551760466,6.28781,1590.4,1590.0,6.28907]
[1744551760670,12.57583,1590.4,1590.0,6.28907]
[1744551761036,6.28824,1590.3,1589.9,6.83969]
[1744551761231,6.28852,1590.2,1589.9,0.55]
[1744551761463,6.28893,1590.1,1589.7,7.9855722]
[1744551761661,7.39,1590.2,1589.8,6.29004]
[1744551761870,13.67855,1590.2,1589.8,6.29004]
[1744551762050,6.28915,1590.1,1589.7,7.9856122]
[1744551762371,12.5784,1590.1,1589.7,7.9856122]
[1744551762553,6.28892,1590.1,1589.7,1.6951322]
[1744551762868,1.5142,1589.7,1589.1,0.02]
[1744551763084,60.034,1589.6,1588.2,1.5759]
[1744551763394,6.29287,1589.1,1588.3,0.06295723]
[1744551763532,3.0,1589.2,1588.1,6.6915422]
[1744551763730,7.391,1589.1,1588.5,6.29502]
[1744551763941,7.391,1589.1,1588.8,6.2939]
[1744551764143,55.4966,1589.6,1589.2,6.29224]
[1744551764342,1.5726,1589.8,1588.9,1.6628]
[1744551764542,1.5726,1590.1,1588.9,1.6628]
[1744551764837,1.5726,1589.3,1588.6,6.29446]
[1744551765144,6.29287,1589.1,1588.6,6.29468]
[1744551765343,8.441,1589.2,1588.5,1.6628]
[1744551765344,8.441,1589.2,1588.5,4.6628]
[1744551765574,70.24553,1589.6,1589.1,6.29257]
[1744551765758,6.29049,1589.7,1589.3,6.29189]
[1744551765958,14.73094,1589.9,1589.4,6.29147]
[1744551766145,8.441,1589.9,1589.5,6.29094]
[1744551766346,8.441,1589.9,1589.5,12.58201]
[1744551766546,8.441,1589.9,1589.2,10.95526]
[1744551766746,6.29171,1589.4,1589.1,3.0]
[1744551766951,6.29171,1589.4,1589.0,6.29295]
[1744551767175,12.58375,1589.4,1588.9,7.95641]
[1744551767366,6.29302,1589.1,1588.6,2.12908]
[1744551767558,6.29302,1589.1,1588.6,7.95734]
[1744551767751,6.29355,1589.0,1588.6,7.95734]
[1744551767959,10.0136,1588.9,1588.1,0.0947322]
[1744551768264,6.29643,1588.2,1588.1,0.0947322]
[1744551768463,6.29615,1588.3,1588.1,0.0947322]
[1744551768674,8.443,1588.7,1588.1,0.0947322]
[1744551768975,8.443,1588.7,1588.4,6.29531]
[1744551769174,6.29575,1588.4,1588.1,0.0947322]
[1744551769376,6.29541,1588.5,1588.1,6.3915422]
[1744551769545,6.29621,1588.3,1588.1,0.0947322]
[1744551769741,6.29564,1588.5,1588.1,0.0947322]
[1744551770046,7.96003,1588.2,1588.1,0.0947322]
[1744551770242,25.84003,1588.2,1588.1,2.2e-06]
[1744551770656,6.29567,1588.4,1588.1,2.2e-06]
[1744551770657,6.29566,1588.4,1588.1,2.2e-06]
[1744551770884,7.95748,1588.9,1588.2,6.29643]
[1744551771103,6.29291,1589.1,1588.7,6.29419]
[1744551771447,1.6636,1589.2,1588.8,6.29405]
[1744551771681,1.6636,1589.2,1588.7,6.29419]
[1744551771682,6.29302,1589.1,1588.7,6.29419]
[1744551771985,6.29331,1589.0,1588.6,6.29484]
[1744551772182,1.6636,1589.2,1588.3,5.172743]
[1744551772383,6.29389,1588.9,1588.5,6.29506]
[1744551772684,6.29543,1588.5,1588.1,6.2968122]
[1744551772982,8.773,1588.9,1588.1,2.2e-06]
[1744551773185,6.29451,1588.7,1588.2,6.29616]
[1744551773366,6.29451,1588.7,1588.3,12.59173]
[1744551773560,8.773,1588.9,1588.3,6.29603]
[1744551773789,6.2942,1588.8,1588.2,0.62961622]
[1744551774085,6.2946,1588.7,1588.3,6.29567]
[1744551774288,6.29445,1588.7,1588.1,2.2e-06]
[1744551774458,6.29535,1588.5,1588.1,2.2e-06]
[1744551774649,6.29515,1588.6,1588.2,6.29636]
[1744551774650,12.59033,1588.6,1588.2,6.29636]
[1744551774853,15.06906,1588.8,1588.4,6.29554]
[1744551775079,8.775,1588.8,1588.5,6.84502]
[1744551775266,15.06906,1588.8,1588.4,6.2956]
[1744551775466,21.36345,1588.8,1588.4,6.2956]
[1744551775668,8.775,1588.8,1588.5,6.29489]
[1744551775988,8.775,1588.8,1588.4,6.84545]
[1744551776185,8.775,1588.8,1588.2,3.55]
[1744551776484,6.29451,1588.7,1588.3,6.29589]
[1744551776691,15.06931,1588.8,1588.4,6.29547]
[1744551776853,53.975,1588.9,1588.3,6.29592]
[1744551777187,53.975,1588.9,1588.6,6.2946]
[1744551777383,6.29429,1588.8,1588.5,1.6053]
[1744551777556,6.29405,1588.8,1588.3,6.29591]
[1744551777756,12.58836,1588.8,1588.3,6.29588]
[1744551777951,6.29445,1588.8,1588.3,6.29571]
[1744551778163,6.29462,1588.7,1588.3,6.29586]
[1744551778466,6.29462,1588.7,1588.1,2.2e-06]
[1744551778467,6.29502,1588.6,1588.2,12.59263]
[1744551778671,6.29502,1588.6,1588.3,6.29602]
[1744551778866,6.29542,1588.5,1588.1,6.2967722]
[1744551779068,1.5059,1588.7,1588.1,2.2e-06]
[1744551779259,6.29618,1588.3,1588.1,2.2e-06]
[1744551779805,6.29564,1588.4,1588.1,2.2e-06]
[1744551779975,6.29564,1588.4,1588.1,6.2968222]
[1744551780183,15.07026,1588.5,1588.1,7.55608642]
[1744551780362,15.0703,1588.5,1588.1,2.2e-06]
[1744551780562,8.775,1588.5,1588.1,2.2e-06]
[1744551780758,6.2957,1588.4,1588.1,2.2e-06]
[1744551780961,12.59156,1588.4,1588.1,2.2e-06]
[1744551781159,6.29643,1588.2,1588.1,2.2e-06]
[1744551781454,7.86613,1588.2,1588.1,2.2e-06]
[1744551781654,13.97613,1588.2,1588.1,2.2e-06]
[1744551781854,23.57813,1588.2,1588.1,2.2e-06]
[1744551782112,16.97613,1588.2,1588.1,2.2e-06]
[1744551782261,23.57813,1588.2,1588.1,2.2e-06]
[1744551782591,12.59888,1587.5,1587.1,6.35077]
[1744551782790,6.3004,1587.2,1587.1,0.05]
[1744551783094,6.3004,1587.2,1586.5,0.3947322]
[1744551783095,6.30259,1586.7,1586.5,0.3947322]
[1744551783297,0.06302293,1586.9,1586.5,0.3947322]
[1744551783453,6.3011,1587.1,1586.6,6.30256]
[1744551783661,1.6567,1587.8,1586.7,1.64801882]
[1744551783859,0.06302293,1587.7,1587.4,6.2996]
[1744551784088,1.6567,1588.1,1587.4,0.55]
[1744551784267,6.36013293,1588.1,1587.6,6.2986]
[1744551784470,0.06302293,1588.1,1588.0,6.29722]
[1744551784712,0.06302293,1588.3,1588.0,6.29694]
[1744551784856,0.06302293,1588.3,1588.0,12.59394]
[1744551785191,53.995,1588.6,1588.3,6.29574]
[1744551785414,15.37369,1588.9,1588.3,0.55]
[1744551785566,6.29445,1588.7,1588.2,0.06295761]
[1744551785878,0.06302293,1588.6,1588.1,0.55]
[1744551786094,0.06302293,1588.8,1588.1,0.55]
[1744551786394,6.29487,1588.6,1588.1,0.984694]
[1744551786564,0.06302293,1588.5,1588.1,6.29653]
[1744551786763,0.06302293,1588.5,1588.2,6.29643]
[1744551787007,0.06302293,1588.5,1588.2,12.5927]
[1744551787300,0.06302293,1588.5,1588.0,16.14409]
[1744551787493,0.06302293,1588.5,1588.1,6.29654]
[1744551787691,0.06302293,1588.5,1588.1,12.59313]
[1744551787873,0.06302293,1588.5,1588.2,6.29636]
[1744551788462,6.35842293,1588.5,1588.1,6.29654]
[1744551789186,6.35842293,1588.5,1588.0,4.614409]
[1744551789187,6.29565,1588.4,1588.0,4.614409]
[1744551789384,0.06302293,1588.3,1587.5,7.93033]
[1744551789562,6.29715,1588.1,1587.6,7.091673]
[1744551789762,6.36034293,1588.0,1587.6,7.091673]
[1744551789978,6.29764,1587.9,1587.5,14.22925]
[1744551790289,0.06302293,1587.9,1587.7,6.29841]
[1744551790672,0.06302293,1587.9,1587.5,1.6313]
[1744551790872,0.06302293,1588.1,1587.9,6.29762]
[1744551791091,9.14302293,1588.2,1587.8,6.29798]
[1744551791262,6.29695,1588.1,1587.7,6.29838]
[1744551791463,0.06302293,1588.0,1587.6,6.29881]
[1744551791687,6.36040293,1588.0,1587.6,7.391821]
[1744551791890,0.06302293,1588.0,1587.7,6.29824]
[1744551792259,0.06302293,1588.0,1587.7,6.29821]
[1744551792459,0.06302293,1588.0,1587.6,6.2987]
[1744551792661,0.06302293,1588.0,1587.7,6.29839]
[1744551792893,6.36041293,1588.0,1587.6,12.59731]
[1744551793103,0.06302293,1588.0,1587.7,6.29838]
[1744551793400,6.36030293,1588.0,1587.6,12.59737]
[1744551793584,0.06302293,1588.0,1587.7,12.59665]
[1744551793783,0.06302293,1588.0,1587.7,6.29825]
[1744551794103,0.06302293,1588.1,1587.8,6.29784]
[1744551794399,0.06302293,1588.2,1588.1,6.29683]
[1744551794603,0.06302293,1588.3,1587.9,6.29762]
[1744551794843,9.14402293,1588.4,1588.2,6.29643]
[1744551795011,9.14402293,1588.4,1588.0,2.1417]
[1744551795012,0.06302293,1588.4,1587.9,6.29739]
[1744551795308,6.29639,1588.3,1587.9,6.29743]
[1744551795507,0.06302293,1588.2,1587.8,6.29763]
[1744551795712,15.44034293,1588.5,1587.7,2.851403]
[1744551795896,6.29669,1588.2,1587.8,12.59578]
[1744551796119,0.06302293,1588.1,1587.8,6.29781]
[1744551796268,0.06302293,1588.1,1587.9,6.29761]
[1744551796469,0.06302293,1588.1,1587.8,12.59562]
[1744551796712,0.06302293,1588.1,1587.8,6.29781]
[1744551797012,6.29818,1587.8,1587.5,6.29896]
[1744551797316,15.44237293,1588.0,1587.7,6.29839]
[1744551797530,9.082,1588.0,1587.7,6.29821]
[1744551797827,9.14502293,1588.0,1587.7,6.29821]
[1744551798127,0.06302293,1588.0,1587.8,6.29788]
[1744551798336,0.06302293,1588.0,1587.5,1.5917]
[1744551798630,0.06302293,1588.0,1587.7,6.29816]
[1744551798815,0.06302293,1588.0,1587.7,12.59639]
[1744551799013,0.06302293,1588.0,1587.7,6.29816]
[1744551799232,0.06302293,1588.0,1587.6,6.29881]
[1744551799386,0.06302293,1588.0,1587.7,6.29821]
[1744551800213,6.36030293,1588.0,1587.7,6.29821]
[1744551800523,6.29766,1587.9,1587.5,7.89085]
[1744551800728,0.06302293,1587.8,1587.5,1.5917]
[1744551800885,0.06302293,1587.9,1587.6,6.29861]
[1744551801085,6.36118293,1587.8,1587.5,1.5917]
[1744551801313,0.06302293,1587.8,1587.6,6.29878]
[1744551801526,0.06302293,1587.8,1587.6,6.29852]
[1744551801935,0.06302293,1587.9,1587.6,6.29852]
[1744551802289,6.36097293,1587.9,1587.6,6.29861]
[1744551802594,0.06302293,1587.9,1587.7,6.29816]
[1744551802918,0.06302293,1588.0,1587.7,6.29816]
[1744551803327,6.36029293,1588.0,1587.5,6.29899]
[1744551803631,6.29929,1587.5,1586.7,7.95878]
[1744551803832,9.083,1587.6,1587.2,1.5417]
[1744551804126,9.083,1587.6,1587.0,6.30091]
[1744551804127,0.06302293,1587.6,1587.0,6.30105]
[1744551804331,6.29984,1587.4,1587.0,6.931145]
[1744551804536,0.06302293,1587.3,1587.0,6.931145]
[1744551804688,0.06302293,1587.3,1587.0,0.630105]
[1744551804892,0.06302293,1587.3,1586.7,4.5417]
[1744551805106,15.44604293,1587.3,1586.9,6.30156]
[1744551805307,0.06302293,1587.2,1587.0,6.30107]
[1744551805517,6.36230293,1587.5,1586.8,6.30184]
[1744551805689,12.60115,1587.2,1586.8,12.60368]
[1744551806015,0.06302293,1587.1,1586.9,6.30155]
[1744551806214,6.30146,1587.0,1586.6,0.66972922]
[1744551806425,0.06302293,1586.9,1586.6,6.97224922]
[1744551807328,12.60262,1587.0,1586.6,6.30252]
[1744551807502,0.06302293,1586.9,1586.6,6.30249]
[1744551807698,6.11,1587.1,1586.5,0.45775851]
[1744551808011,6.17302293,1587.1,1586.9,6.30135]
[1744551808209,6.17302293,1587.1,1586.7,6.30221]
[1744551808210,6.30123,1587.0,1586.7,6.30221]
[1744551808520,0.06302293,1586.9,1586.8,6.30199]
[1744551808720,0.06302293,1587.0,1586.5,3.3947322]
[1744551808922,0.06302293,1587.0,1586.8,12.6036]
[1744551809129,0.06302293,1587.0,1586.6,0.55]
[1744551809815,6.30184,1586.9,1586.5,0.3947322]
[1744551810123,0.06302293,1586.8,1586.5,0.9447322]
[1744551810431,6.30256,1586.7,1586.5,0.3947322]
[1744551810630,6.36580293,1586.6,1586.5,0.3947322]
[1744551810829,7.87810293,1586.6,1586.5,0.3947322]
[1744551811014,6.30676,1585.6,1585.5,0.03861994]
[1744551811193,9.086,1585.9,1585.5,0.03861994]
[1744551811393,1.5123,1586.0,1585.5,0.03861994]
[1744551811592,0.06302293,1585.9,1585.5,0.03861994]
[1744551811795,1.5123,1586.3,1585.5,0.10169229]
[1744551812028,0.06302293,1586.4,1586.0,6.30496]
[1744551812195,6.36549293,1586.7,1586.2,0.3]
[1744551812421,0.06302293,1586.7,1586.3,6.30384]
[1744551812694,0.06302293,1586.9,1586.5,6.30282]
[1744551812891,0.06302293,1586.9,1586.4,4.6654]
[1744551813115,0.06302293,1586.9,1586.5,0.46654]
[1744551813323,0.06302293,1586.9,1586.4,1.6654]
[1744551813523,0.06302293,1587.0,1586.4,1.6654]
[1744551813725,6.30301,1586.6,1586.4,1.6654]
[1744551814022,6.36501293,1586.8,1586.4,1.6654]
[1744551814223,6.30164,1586.9,1586.4,7.96873]
[1744551814520,12.60349,1586.9,1586.5,0.796873]
[1744551814720,12.60349,1586.9,1586.4,7.96873]
[1744551814721,6.30199,1586.8,1586.4,1.6654]
[1744551814941,6.36557293,1586.7,1586.4,1.6654]
[1744551815128,6.30453,1586.2,1585.6,10.8105]
[1744551815428,6.30455,1586.2,1585.7,6.30618]
[1744551815627,6.30435,1586.3,1585.8,6.30595]
[1744551815801,6.30439,1586.2,1585.9,0.630595]
[1744551816123,6.30575,1585.9,1585.6,1.5055]
[1744551816331,6.30611,1585.8,1585.6,1.5055]
[1744551816524,6.30636,1585.7,1585.6,1.5055]
[1744551816717,12.67603293,1585.7,1585.5,0.03861994]
[1744551816914,6.30676,1585.6,1585.5,0.03861994]
[1744551817117,7.88716,1585.6,1585.5,0.03861994]
[1744551817732,7.95018293,1585.6,1585.5,0.03861994]
[1744551818229,6.30604,1585.8,1585.5,0.03861994]
[1744551818399,0.06302293,1585.9,1585.6,6.30655]
[1744551818600,0.06302293,1586.1,1585.7,6.3061]
[1744551818793,6.36801293,1586.1,1585.6,7.09179699]
[1744551819030,6.36801293,1586.1,1585.6,0.78506699]
[1744551819031,6.3055,1586.0,1585.6,0.78506699]
[1744551819207,6.36860293,1585.9,1585.6,0.78506699]
[1744551819402,0.06302293,1585.9,1585.5,1.54411994]
[1744551819607,12.67465293,1585.9,1585.5,1.54411994]
[1744551819796,0.06302293,1585.9,1585.5,1.54411994]
[1744551819998,6.30558,1585.9,1585.5,1.54411994]
[1744551820231,6.30676,1585.6,1585.5,0.03861994]
[1744551820410,14.07446,1585.6,1585.5,9.94e-06]
[1744551820609,17.27346,1585.6,1585.5,9.94e-06]
[1744551820915,6.30835,1585.2,1585.1,0.05]
[1744551821120,6.30875,1585.1,1585.0,2.2e-06]
[1744551821300,20.27545,1585.1,1585.0,2.2e-06]
[1744551822003,26.38545,1585.1,1585.0,2.2e-06]
[1744551822200,2.2077,1584.6,1583.9,5.34e-06]
[1744551822399,6.6819,1583.6,1583.1,0.05]
[1744551822634,0.06302293,1583.5,1583.3,17.06964644]
[1744551822930,6.31268,1584.2,1583.4,1.5299]
[1744551823132,0.0469,1584.8,1583.6,3.0]
[1744551823296,6.31034,1584.7,1584.0,1.5299]
[1744551823506,6.30915,1585.0,1584.3,6.31168]
[1744551823727,6.30913,1585.1,1584.4,6.942348]
[1744551824033,6.30772,1585.4,1584.8,3.0]
[1744551824335,6.30189,1586.9,1586.0,6.30484]
[1744551824508,8.22706332,1587.1,1586.1,0.06304458]
[1744551824509,6.30235,1586.8,1586.1,0.06304458]
[1744551824710,6.30397,1586.3,1586.0,0.630484]
[1744551824910,6.30397,1586.3,1585.8,1.5043]
[1744551825111,6.30397,1586.3,1585.8,1.8254069]
[1744551825409,0.05,1586.4,1585.8,1.88845654]
[1744551825616,0.05,1586.4,1585.9,0.55]
[1744551825930,0.05,1586.4,1586.1,0.55]
[1744551826137,0.05,1586.4,1586.3,0.55]
[1744551826342,0.05,1586.4,1586.1,4.3066189]
[1744551826502,6.35377,1586.4,1586.1,0.3211069]
[1744551826707,6.30437,1586.2,1586.1,0.3211069]
[1744551827105,6.30696,1585.6,1585.3,1.5043]
[1744551827526,6.30634,1585.8,1585.3,1.5043]
[1744551827725,6.30661,1585.7,1585.3,2.585544]
[1744551827927,6.30661,1585.7,1585.3,1.5043]
[1744551828126,6.30596,1585.8,1585.3,1.5043]
[1744551828325,6.30682,1585.6,1585.3,1.5043]
[1744551828713,6.30517,1586.0,1585.3,1.5043]
[1744551828913,6.30556,1585.9,1584.9,2.0193317]
[1744551829114,6.30556,1585.9,1584.9,8.3288617]
[1744551829115,6.30774,1585.4,1584.9,8.3288617]
[1744551829441,6.30853,1585.2,1585.0,0.83288617]
[1744551829608,12.61722,1585.2,1584.9,2.0193317]
[1744551829807,6.30914,1585.0,1584.9,0.4025317]
[1744551831025,6.30914,1585.0,1584.9,1.7e-06]
[1744551831235,6.30888,1585.1,1584.9,1.7e-06]
[1744551831557,6.30811,1585.3,1584.9,1.7e-06]
[1744551831728,6.3084,1585.2,1584.9,1.7e-06]
[1744551832333,6.3084,1585.2,1584.7,1.6168]
[1744551832666,6.30757,1585.4,1584.8,6.8597]
[1744551832817,6.30757,1585.4,1585.0,0.55]
[1744551833145,6.30861,1585.2,1584.9,0.68597]
[1744551833319,12.61785,1585.1,1584.7,1.67988449]
[1744551833525,3.0,1584.8,1583.9,1.6168]
[1744551833732,6.31034,1584.7,1583.9,1.6168]
[1744551833950,6.31074,1584.6,1583.9,1.6168]
[1744551834356,6.31313,1584.0,1583.9,1.6168]
[1744551834554,6.31288,1584.1,1583.9,1.6168]
[1744551834857,6.31278,1584.1,1583.9,1.6168]
[1744551835355,6.31433,1583.7,1583.4,1.5671]
[1744551835655,6.31552,1583.4,1583.3,1.7e-06]
[1744551835854,6.3148,1583.6,1583.3,1.7e-06]
[1744551836058,6.31497,1583.6,1583.3,1.7e-06]
[1744551836232,6.31385,1583.9,1583.3,1.7e-06]
[1744551836428,6.31552,1583.4,1583.3,1.7e-06]
[1744551836628,6.31497,1583.6,1583.3,1.7e-06]
[1744551836827,6.31552,1583.4,1583.3,1.7e-06]
[1744551837143,6.26536,1583.5,1583.3,1.7e-06]
[1744551837544,6.31357,1583.9,1583.3,1.7e-06]
[1744551837741,6.31357,1583.9,1583.3,7.8828417]
[1744551837922,6.31317,1584.0,1583.4,3.78828417]
[1744551838119,6.31387,1583.9,1583.4,3.78828417]
[1744551838326,6.31472,1583.7,1583.3,1.5671017]
[1744551838524,1.5452,1584.4,1583.4,6.31537]
[1744551838525,6.31257,1584.2,1583.4,6.31537]
[1744551838743,6.31291,1584.1,1583.3,1.5671017]
[1744551838944,6.31243,1584.2,1583.7,6.31429]
[1744551839149,6.31208,1584.3,1583.8,6.31389]
[1744551839351,6.3125,1584.2,1583.8,1.262818]
[1744551839550,6.31195,1584.3,1583.7,6.31415]
[1744551839852,6.31157,1584.4,1583.8,6.31354]
[1744551840247,6.3118,1584.4,1583.8,6.31375]
[1744551840443,6.31287,1584.1,1583.6,6.31448]
[1744551840637,6.31287,1584.1,1583.5,15.63]
[1744551840840,6.31233,1584.2,1583.6,7.9406399]
[1744551841143,6.11,1584.6,1583.8,0.55]
[1744551841342,12.42074,1584.6,1584.1,12.62509]
[1744551841541,4.08996321,1584.7,1584.1,0.55]
[1744551841723,4.08996321,1584.7,1584.2,6.31215]
[1744551841929,4.08996321,1584.7,1584.3,0.631215]
[1744551842137,4.08996321,1584.7,1584.3,6.943005]
[1744551842324,4.08996321,1584.7,1584.3,0.631215]
[1744551842525,4.08996321,1584.7,1584.5,6.3111]
[1744551842725,10.46724321,1585.0,1584.5,6.3111]
[1744551842946,4.15796321,1585.0,1584.6,6.31071]
[1744551843258,4.15796321,1585.0,1584.7,6.31031]
[1744551843456,4.15796321,1585.0,1584.7,6.31013]
[1744551843659,4.15796321,1585.0,1584.8,6.30979]
[1744551844161,0.068,1585.0,1584.9,6.30954]
[1744551844365,0.068,1585.0,1584.9,7.571473]
[1744551844656,0.068,1585.0,1584.9,8.121473]
[1744551845042,0.068,1585.0,1584.9,11.121473]
[1744551845440,4.08996321,1585.4,1584.9,11.59558346]
[1744551845654,4.08996321,1585.4,1585.3,7.85525]
[1744551845842,4.08996321,1585.4,1585.3,9.821593]
[1744551846168,4.08996321,1585.8,1585.4,6.3074]
[1744551846367,4.08996321,1585.8,1585.7,6.30636]
[1744551846569,4.08996321,1585.8,1585.7,6.85636]
[1744551846747,5.31695217,1586.3,1586.2,6.30437]
[1744551847333,5.31695217,1586.3,1586.1,6.30448]
[1744551847539,5.31695217,1586.3,1586.2,6.30437]
[1744551848172,5.31695217,1586.3,1586.2,6.85437]
[1744551848471,5.31695217,1586.3,1586.2,6.30437]
[1744551849042,0.05,1586.4,1586.3,6.30397]
[1744551849236,0.05,1586.4,1586.3,8.114804]
[1744551849462,0.05,1586.4,1586.3,9.726204]
[1744551850038,0.05,1586.4,1586.3,7.91537]
[1744551850538,0.05,1586.4,1586.3,7.97839482]
[1744551850967,0.05,1586.4,1586.3,8.46537]
[1744551852249,0.05,1586.4,1586.3,8.52839365]
[1744551852455,0.05,1586.4,1586.3,8.46537]
[1744551852649,0.05,1586.4,1586.3,7.91537]
[1744551852849,0.05,1586.4,1586.3,1.6114]
[1744551853054,0.05,1586.4,1586.3,6.30397]
[1744551853275,0.05,1586.4,1586.2,12.6084]
[1744551853443,0.05,1586.4,1586.3,6.85397]
[1744551853770,1e-05,1586.4,1586.3,6.85397]
[1744551853970,1e-05,1586.4,1586.3,8.800207]
[1744551855077,1e-05,1586.4,1586.3,2.496237]
[1744551855373,1e-05,1586.4,1586.3,6.30397]
[1744551855561,1e-05,1586.4,1586.3,6.85397]
[1744551855770,1e-05,1586.4,1586.3,7.32737213]
[1744551855944,1e-05,1586.4,1586.3,19.00037213]
[1744551856767,1e-05,1586.4,1586.3,23.57347213]
[1744551856963,0.05,1587.4,1587.2,6.30027]
[1744551857163,0.05,1587.4,1587.1,12.60144]
[1744551857367,0.05,1587.4,1587.2,6.30024]
[1744551857568,0.05,1587.4,1587.3,6.3]
[1744551858474,0.05,1587.4,1587.3,6.85]
[1744551858675,1e-05,1587.4,1587.3,8.795045]
[1744551859079,5.31695217,1587.8,1587.7,6.29841]
[1744551860960,5.31695217,1587.8,1587.7,6.84841]
[1744551861160,0.40253,1588.1,1587.6,6.29849]
[1744551861376,0.40253,1588.1,1587.5,0.55]
[1744551861545,6.69938,1588.1,1587.6,6.29847]
[1744551861745,6.69938,1588.1,1587.6,6.2988]
[1744551861982,6.29733,1588.0,1587.6,6.2988]
[1744551862181,6.29848,1587.7,1587.3,6.29982]
[1744551862387,6.29816,1587.8,1587.3,12.59968]
[1744551862681,6.29816,1587.8,1586.2,6.30425]
[1744551862682,6.11,1587.8,1586.9,6.30122]
[1744551862851,7.92087,1587.4,1586.9,6.3013]
[1744551863047,1.6212,1587.4,1587.1,6.30055]
[1744551863259,6.29904,1587.6,1587.1,6.30055]